bitfinex-derivatives/quotes_ETHF0:USTF0_20250709
["timestamp","ask_amount","ask_price","bid_price","bid_amount"]
[1752093982948,0.73006,2738.8,2738.3,0.73017]
[1752093982949,0.7302,2738.4,2738.3,0.73017]
[1752093983148,0.73025,2738.1,2738.0,1.56436]
[1752093984252,0.73023,2738.3,2738.2,0.7302]
[1752093984651,1.65798,2738.4,2738.3,0.73019]
[1752093984845,0.9278,2738.4,2738.3,0.73019]
[1752093985046,3.2078,2738.5,2738.4,0.73017]
[1752093985251,3.2078,2739.2,2738.7,0.73009]
[1752093985451,0.9278,2739.1,2739.0,0.73001]
[1752093985847,0.9278,2739.1,2738.5,1.82532]
[1752093986055,0.73011,2738.7,2738.6,0.73009]
[1752093986251,3.2078,2739.2,2739.1,0.72998]
[1752093986653,3.93775,2739.2,2739.1,0.72998]
[1752093986952,3.2078,2739.2,2739.1,0.72998]
[1752093987350,3.2078,2739.2,2739.1,3.13504502]
[1752093988950,3.2078,2739.2,2739.1,0.72998]
[1752093990059,3.93765,2739.6,2739.5,0.72987]
[1752093990249,3.2078,2739.6,2739.5,0.72987]
[1752093990456,3.93765,2739.6,2739.5,0.72987]
[1752093990951,3.2078,2739.6,2739.5,0.72987]
[1752093991560,0.7299,2739.5,2739.1,3.13504502]
[1752093991760,0.7299,2739.5,2739.4,0.72988]
[1752093992055,4.86546,2739.6,2739.5,0.72987]
[1752093992255,4.1356,2739.6,2739.1,3.93778]
[1752093992463,1.2538,2739.5,2739.0,1.825]
[1752093992653,1.2538,2739.5,2739.4,0.7299]
[1752093992856,4.86546,2739.6,2739.5,0.72987]
[1752093993763,0.72992,2739.5,2739.4,0.72988]
[1752093993957,0.72994,2739.4,2739.3,0.72991]
[1752093994358,0.72996,2739.3,2739.2,0.72993]
[1752093994557,0.73003,2739.0,2738.9,0.72999]
[1752093994958,0.72999,2739.1,2739.0,0.72998]
[1752093995158,1.65779,2739.1,2739.0,0.72998]
[1752093995563,0.9278,2739.1,2739.0,0.72998]
[1752093995861,1.65778,2739.1,2739.0,0.72998]
[1752093996463,0.73004,2739.0,2738.9,0.73002]
[1752093996662,0.9278,2739.1,2739.0,0.73001]
[1752093996859,1.65778,2739.1,2739.0,0.73001]
[1752093997161,0.9278,2739.1,2739.0,0.73001]
[1752093997357,0.72997,2739.2,2739.1,0.72998]
[1752093997862,0.9199,2739.2,2739.1,0.72998]
[1752093998062,3.2078,2739.3,2739.2,0.72995]
[1752093999063,3.2078,2739.6,2739.5,0.72987]
[1752093999254,0.72984,2739.7,2739.5,0.72986]
[1752093999461,1.64975,2739.6,2739.4,0.72988]
[1752093999659,0.9199,2739.6,2739.5,0.72987]
[1752093999964,1.64975,2739.6,2739.5,0.72987]
[1752094000165,5.4158,2739.9,2739.6,0.72983]
[1752094000461,0.72987,2739.6,2739.5,0.72986]
[1752094001364,1.82451,2739.8,2739.2,1.2505]
[1752094001665,0.72988,2739.5,2739.4,0.72988]
[1752094001865,1.64977,2739.6,2739.5,0.72987]
[1752094002364,0.9199,2739.6,2739.5,0.72987]
[1752094002564,0.72985,2739.6,2739.5,0.72987]
[1752094002765,0.7299,2739.5,2739.4,0.72988]
[1752094003064,1.4026,2739.5,2739.4,0.72988]
[1752094003457,1.5926,2739.5,2739.1,0.8654]
[1752094003661,3.2078,2739.3,2738.7,3.2078]
[1752094003860,0.72997,2739.2,2739.1,0.72995]
[1752094004059,1.40267,2739.2,2739.1,0.72995]
[1752094004261,1.40267,2739.2,2739.1,1.34245]
[1752094004564,0.6727,2739.2,2739.1,1.34245]
[1752094004764,3.2078,2739.6,2739.2,1.82489]
[1752094004960,0.72983,2739.7,2739.5,0.6125]
[1752094005162,0.72983,2739.7,2739.6,0.72985]
[1752094005356,0.6727,2739.6,2739.1,3.2078]
[1752094005665,0.9199,2739.5,2738.8,4.0612]
[1752094005863,0.72999,2739.1,2739.0,0.72997]
[1752094006059,3.0951,2739.5,2738.9,1.82508]
[1752094006259,0.72992,2739.4,2739.3,0.7299]
[1752094006663,0.72989,2739.5,2739.4,0.7299]
[1752094006965,0.72986,2739.6,2739.5,0.72987]
[1752094007164,0.7299,2739.4,2739.3,2.0755]
[1752094007360,0.7299,2739.5,2739.4,0.72989]
[1752094007561,3.962,2739.8,2739.3,1.3456]
[1752094007758,0.72985,2739.7,2739.6,0.72984]
[1752094007960,0.72992,2739.4,2739.3,0.7299]
[1752094008863,0.9199,2739.7,2739.3,1.8248]
[1752094009063,0.72992,2739.4,2739.3,0.72989]
[1752094009266,0.72989,2739.5,2739.4,0.72987]
[1752094009764,0.72989,2739.5,2739.1,3.17054]
[1752094009765,0.9199,2739.5,2738.9,2.73435]
[1752094010064,0.72997,2739.3,2739.2,0.72993]
[1752094010267,1.40267,2739.3,2739.2,0.72993]
[1752094010467,0.72999,2739.2,2739.1,0.72996]
[1752094010761,0.6727,2739.2,2739.1,1.34246]
[1752094010964,0.73001,2739.0,2738.9,1.63932]
[1752094011170,0.73003,2738.9,2738.8,3.2078]
[1752094011466,0.73009,2738.8,2738.7,0.73006]
[1752094011767,1.40279,2738.8,2738.7,1.34256]
[1752094012162,0.6727,2738.8,2738.7,1.34256]
[1752094012561,0.9199,2739.0,2738.8,0.73003]
[1752094012765,1.40274,2738.9,2738.8,0.73003]
[1752094013467,0.73009,2738.8,2738.7,0.73006]
[1752094013767,1.40279,2738.8,2738.7,0.73006]
[1752094013968,1.40279,2738.8,2738.7,1.34256]
[1752094014168,1.40279,2738.8,2738.7,0.73006]
[1752094014466,0.6727,2738.8,2738.7,1.34256]
[1752094014669,0.6727,2738.8,2738.7,0.73006]
[1752094014870,0.73001,2739.0,2738.9,0.73003]
[1752094015064,0.73,2739.1,2739.0,0.72998]
[1752094015265,0.73007,2738.9,2738.8,0.73004]
[1752094015465,0.73009,2738.8,2738.7,0.73007]
[1752094015772,0.73005,2738.9,2738.8,0.73003]
[1752094016069,0.73006,2738.8,2738.7,1.34257]
[1752094016867,0.73005,2738.9,2738.8,0.73003]
[1752094017174,0.73006,2738.8,2738.7,1.34258]
[1752094018065,0.73006,2738.8,2738.7,1.34259]
[1752094018265,0.73006,2738.8,2738.7,0.6125]
[1752094018766,0.73014,2738.5,2738.4,0.8636]
[1752094018966,0.73014,2738.5,2738.4,1.4761]
[1752094019267,1.40284,2738.5,2738.4,2.20627]
[1752094019467,0.6727,2738.5,2738.4,2.20627]
[1752094019866,1.40284,2738.5,2738.4,1.4761]
[1752094020170,1.40284,2738.5,2738.4,2.20627]
[1752094020371,1.40284,2738.5,2738.4,1.59377]
[1752094020571,4.85775,2738.9,2738.4,1.4761]
[1752094020773,3.93785,2738.9,2738.8,0.73006]
[1752094020967,4.61055,2738.9,2738.8,1.34256]
[1752094021163,4.61055,2738.9,2738.8,2.61006]
[1752094021367,4.61055,2738.9,2738.8,1.99756]
[1752094021668,0.73014,2738.6,2738.5,0.73012]
[1752094021874,0.6727,2738.6,2738.5,0.73012]
[1752094022074,0.6727,2738.6,2738.5,1.34262]
[1752094022376,1.40281,2738.6,2738.5,0.73012]
[1752094022965,0.6727,2738.6,2738.5,1.34262]
[1752094023172,0.73008,2738.8,2738.7,0.73006]
[1752094023477,3.93785,2738.9,2738.8,0.73006]
[1752094023676,3.8805,2738.9,2738.8,2.63846]
[1752094023876,3.8805,2738.9,2738.8,2.02596]
[1752094024076,3.8805,2738.9,2738.8,2.63846]
[1752094024475,4.61053,2738.9,2738.8,2.63846]
[1752094024674,3.8805,2738.9,2738.8,2.63846]
[1752094025277,3.2078,2738.9,2738.8,2.63846]
[1752094025478,3.2078,2739.2,2739.1,0.72998]
[1752094025776,0.73001,2739.1,2739.0,0.72998]
[1752094025979,0.6727,2739.1,2739.0,0.72998]
[1752094026472,1.5926,2739.1,2738.5,5.03315]
[1752094026678,1.40269,2739.1,2739.0,0.73001]
[1752094026877,3.2078,2739.2,2739.1,0.72998]
[1752094027078,0.7299,2739.5,2739.4,0.72987]
[1752094027278,1.4026,2739.5,2739.4,0.72987]
[1752094027572,0.6727,2739.5,2739.4,1.34237]
[1752094027779,1.40257,2739.5,2739.4,0.72987]
[1752094027975,0.72993,2739.4,2739.3,0.7299]
[1752094028178,1.40263,2739.4,2739.3,1.34243]
[1752094028376,0.6727,2739.4,2739.3,1.34243]
[1752094028573,0.6727,2739.4,2739.3,2.67923]
[1752094028775,0.72993,2739.3,2739.2,0.8961]
[1752094028977,0.73003,2739.0,2738.9,0.73]
[1752094029273,1.37733,2739.0,2738.9,0.73]
[1752094029476,0.73003,2738.9,2738.8,3.93785]
[1752094029677,0.6473,2738.9,2738.8,0.73005]
[1752094029873,0.9439,2739.2,2738.8,0.73005]
[1752094030076,0.72998,2739.2,2739.1,0.72995]
[1752094030282,0.72991,2739.4,2739.3,0.72993]
[1752094030482,1.37721,2739.4,2739.3,0.72993]
[1752094030682,0.6473,2739.4,2739.3,0.72993]
[1752094031087,0.6473,2739.4,2739.3,2.06673]
[1752094031380,11.70196502,2739.4,2738.5,4.0285]
[1752094031683,0.73011,2738.6,2738.5,0.8207]
[1752094031875,0.73027,2738.0,2737.9,3.2078]
[1752094032077,1.82561,2738.2,2737.6,4.092]
[1752094032280,0.73034,2737.8,2737.7,0.73034]
[1752094032479,3.2078,2738.0,2737.6,4.092]
[1752094032680,0.73032,2737.9,2737.8,0.7303]
[1752094033589,0.73032,2737.9,2737.8,0.73032]
[1752094033776,0.73032,2737.9,2737.8,0.73031]
[1752094034385,0.73034,2737.8,2737.7,0.73033]
[1752094034580,0.73041,2737.5,2737.4,0.8207]
[1752094034885,3.93821,2737.5,2737.4,0.8207]
[1752094035186,0.73051,2737.1,2737.0,0.73053]
[1752094035385,5.03383,2737.5,2737.0,0.73052]
[1752094035580,0.73052,2737.1,2737.0,0.73053]
[1752094036085,1.274,2737.4,2736.9,3.2078]
[1752094036287,0.73051,2737.1,2737.0,0.73053]
[1752094036487,3.2078,2737.2,2736.6,3.65046502]
[1752094036682,4.1517,2737.2,2736.6,1.2454]
[1752094036883,0.73054,2737.0,2736.6,1.2454]
[1752094037087,0.73054,2737.0,2736.9,0.73057]
[1752094037386,0.73053,2737.1,2736.6,1.2454]
[1752094037587,0.73056,2737.0,2736.8,0.73057]
[1752094037783,0.73057,2736.9,2736.8,0.73057]
[1752094038090,0.9439,2737.1,2736.8,0.73058]
[1752094038289,0.9439,2737.1,2736.6,1.2454]
[1752094038585,0.73057,2736.9,2736.8,0.73058]
[1752094038881,0.7306,2736.8,2736.7,0.73061]
[1752094039089,0.9439,2736.8,2736.5,3.2078]
[1752094039291,0.73066,2736.6,2736.5,0.73066]
[1752094039480,0.9439,2736.6,2735.7,4.23227502]
[1752094039684,5.3764,2736.6,2735.7,4.23227502]
[1752094039886,0.73074,2736.3,2736.2,0.73075]
[1752094040084,0.73075,2736.2,2736.1,0.73076]
[1752094040286,1.67464,2736.3,2736.2,0.73075]
[1752094040991,0.7308,2736.1,2736.0,0.7308]
[1752094041286,0.9439,2736.3,2735.8,1.232]
[1752094041484,0.73075,2736.3,2736.2,0.73075]
[1752094041685,0.73071,2736.4,2736.3,0.7307]
[1752094041886,0.73069,2736.5,2736.4,0.73069]
[1752094042180,4.1517,2736.6,2736.0,3.16109]
[1752094042380,0.73069,2736.5,2736.2,2.40506502]
[1752094042588,0.9439,2736.5,2735.6,2.40506502]
[1752094042786,0.9439,2736.5,2735.5,0.851]
[1752094042787,1.82689,2736.2,2735.5,2.1851]
[1752094042993,4.1517,2736.3,2735.6,2.40506502]
[1752094043194,0.73083,2736.0,2735.9,0.73083]
[1752094043398,0.73086,2735.8,2735.7,2.06497]
[1752094043697,0.73089,2735.7,2735.6,0.7309]
[1752094043991,0.73089,2735.7,2735.5,0.851]
[1752094043992,0.73087,2735.8,2735.5,0.851]
[1752094044196,0.9439,2736.0,2735.5,0.851]
[1752094044398,1.67472,2736.0,2735.9,0.73083]
[1752094044694,4.1517,2736.3,2735.6,1.82729]
[1752094044989,3.2078,2736.3,2736.2,0.73075]
[1752094045190,0.73057,2736.9,2736.2,3.2078]
[1752094045395,54.2974,2737.2,2736.6,4.23166502]
[1752094045695,0.73052,2737.1,2737.0,0.73052]
[1752094045891,4.5142,2737.3,2737.2,0.73049]
[1752094045892,3.2078,2737.3,2737.2,0.73049]
[1752094046094,0.73058,2736.9,2736.8,0.73058]
[1752094046293,0.9439,2736.9,2736.8,0.73059]
[1752094046495,1.82613,2737.4,2736.9,0.73055]
[1752094046496,3.2078,2737.3,2736.9,0.73055]
[1752094046695,3.2078,2737.3,2736.5,1.82666]
[1752094046696,1.6744,2737.2,2736.5,5.03446]
[1752094046893,3.2078,2737.3,2737.2,0.73049]
[1752094047092,4.1517,2737.3,2737.0,0.73052]
[1752094047288,0.7305,2737.2,2737.1,0.7305]
[1752094047495,3.2078,2737.3,2737.2,0.73049]
[1752094048290,3.2078,2737.3,2737.2,2.01069]
[1752094048495,0.73042,2737.5,2737.4,0.73043]
[1752094048698,0.9439,2737.5,2737.0,0.9086]
[1752094048997,1.67435,2737.4,2737.3,0.73046]
[1752094049198,0.9439,2737.4,2737.3,0.73046]
[1752094049400,1.67433,2737.4,2737.3,0.73046]
[1752094050098,3.2078,2737.7,2737.1,1.2802]
[1752094050300,0.73048,2737.3,2737.2,0.73048]
[1752094050600,0.7305,2737.2,2737.1,0.73049]
[1752094050800,1.67437,2737.3,2737.2,0.73049]
[1752094051200,0.9439,2737.3,2737.0,1.63912]
[1752094051395,0.9439,2737.2,2737.1,0.73051]
[1752094051601,0.73053,2737.1,2737.0,0.73052]
[1752094052199,1.67441,2737.2,2737.1,0.73051]
[1752094052699,1.67441,2737.2,2736.8,1.3387]
[1752094052700,0.9439,2737.2,2736.8,1.3387]
[1752094052896,1.67442,2737.2,2737.1,0.73051]
[1752094053097,0.9439,2737.2,2737.1,0.73051]
[1752094053903,0.73049,2737.2,2737.1,0.73051]
[1752094054094,3.2078,2737.4,2736.8,1.3387]
[1752094054295,0.9439,2737.3,2736.8,3.74376502]
[1752094054495,0.9439,2737.3,2736.6,1.63123]
[1752094054496,0.73062,2736.7,2736.6,1.63123]
[1752094054694,1.67446,2737.0,2736.9,0.73057]
[1752094054900,0.73061,2736.8,2736.7,0.7306]
[1752094055200,1.67445,2737.0,2736.9,0.73055]
[1752094055504,0.73061,2736.9,2736.8,0.73059]
[1752094055803,0.73062,2736.8,2736.7,0.73059]
[1752094056003,0.9439,2736.8,2736.7,0.73059]
[1752094056302,1.67449,2736.8,2736.7,0.73059]
[1752094056502,0.9439,2736.8,2736.7,0.73059]
[1752094056704,3.2078,2737.1,2736.6,2.7272]
[1752094056900,0.9439,2737.1,2737.0,0.73054]
[1752094057105,0.7305,2737.2,2737.1,0.73047]
[1752094057403,1.6744,2737.2,2737.1,0.73047]
[1752094057905,0.7305,2737.2,2737.1,0.73047]
[1752094058100,3.2078,2737.4,2737.0,1.82635]
[1752094058308,0.73048,2737.3,2737.2,0.73046]
[1752094059607,0.9852,2737.3,2737.2,0.73046]
[1752094059810,3.2078,2737.4,2737.3,0.73046]
[1752094060203,3.93815,2737.7,2737.6,0.73038]
[1752094060402,3.2078,2737.7,2737.6,0.73038]
[1752094060902,0.73041,2737.6,2737.4,1.3145]
[1752094061103,0.73045,2737.4,2737.3,0.73043]
[1752094061308,4.193,2737.8,2737.3,1.82616]
[1752094061502,0.7304,2737.6,2737.5,0.73039]
[1752094061703,0.73043,2737.5,2737.4,0.73042]
[1752094061903,6.01904,2737.5,2736.8,3.2078]
[1752094062203,3.2078,2737.2,2736.5,5.3769]
[1752094062409,0.73064,2736.7,2736.6,0.73063]
[1752094063299,0.73065,2736.6,2736.5,5.3769]
[1752094063505,0.73065,2736.6,2736.5,6.10757]
[1752094063706,1.71585,2736.6,2736.5,4.0866]
[1752094064006,1.71585,2736.6,2736.5,0.8788]
[1752094064311,1.71585,2736.6,2736.5,1.60947]
[1752094064509,1.71585,2736.6,2736.5,0.8788]
[1752094064810,0.9852,2736.6,2735.9,1.2903]
[1752094065106,0.73077,2736.2,2736.1,0.73076]
[1752094065307,0.73079,2736.1,2735.9,2.1614]
[1752094065509,0.73077,2736.2,2736.1,0.73077]
[1752094065802,0.7308,2736.1,2736.0,0.7308]
[1752094066010,0.9852,2736.3,2736.2,0.73075]
[1752094066206,1.71593,2736.3,2736.2,0.73075]
[1752094067106,3.2078,2736.9,2736.2,5.0]
[1752094067302,3.2078,2736.9,2736.1,2.40506502]
[1752094067303,0.73061,2736.8,2736.5,2.40506502]
[1752094067510,0.73067,2736.6,2736.5,0.73066]
[1752094067709,0.9852,2736.6,2736.3,4.4541]
[1752094068005,0.9852,2736.6,2736.5,0.73067]
[1752094068207,3.2078,2736.9,2736.4,4.23182502]
[1752094068406,3.2078,2736.9,2736.8,0.73059]
[1752094068813,1.82612,2737.4,2736.8,8.11589]
[1752094068814,3.2078,2737.2,2736.8,8.11589]
[1752094069110,0.73051,2737.2,2737.1,0.73049]
[1752094069308,0.73056,2737.0,2736.8,1.2894]
[1752094069504,0.73039,2737.6,2737.5,0.73038]
[1752094069706,3.2078,2737.9,2737.4,2.40506502]
[1752094069905,3.2078,2737.9,2737.8,0.73033]
[1752094070110,3.2078,2737.9,2737.5,2.1931]
[1752094070310,0.73037,2737.7,2737.5,2.92349]
[1752094070510,0.73037,2737.7,2737.5,1.63409]
[1752094070707,0.9852,2738.1,2737.5,0.9037]
[1752094070914,0.73031,2737.9,2737.8,0.73032]
[1752094071210,0.73034,2737.8,2737.7,0.73034]
[1752094071410,0.73032,2737.9,2737.8,0.73032]
[1752094071713,0.7303,2738.0,2737.6,1.2951]
[1752094071909,1.71546,2738.1,2738.0,0.73027]
[1752094072105,0.73025,2738.1,2737.7,1.82585]
[1752094072308,3.2078,2738.2,2737.8,1.2951]
[1752094072505,0.7303,2737.9,2737.8,2.02541]
[1752094072711,3.2078,2738.2,2737.6,3.2078]
[1752094072909,3.2078,2738.2,2738.1,0.73025]
[1752094073711,3.2078,2738.2,2738.1,2.02535]
[1752094074310,3.93802,2738.2,2738.1,2.02535]
[1752094074715,3.2078,2738.2,2738.1,2.02535]
[1752094075606,3.2078,2738.7,2738.1,7.86214398]
[1752094075808,4.193,2739.3,2738.5,4.45430398]
[1752094076011,4.193,2739.3,2738.6,4.4461]
[1752094076206,3.2078,2739.3,2739.2,0.72995]
[1752094076606,0.72998,2739.2,2739.1,0.72997]
[1752094076816,4.193,2739.3,2739.2,0.72995]
[1752094077016,0.72997,2739.2,2739.1,0.72996]
[1752094077408,4.193,2739.3,2738.8,1.2383]
[1752094077613,3.2078,2739.3,2739.2,0.72995]
[1752094077912,0.72991,2739.4,2739.3,0.72993]
[1752094078115,1.71509,2739.5,2739.4,0.7299]
[1752094078415,0.72991,2739.4,2739.3,0.72991]
[1752094078611,0.9852,2739.5,2739.4,0.7299]
[1752094078817,0.72989,2739.5,2739.4,0.72988]
[1752094079220,0.72992,2739.4,2739.3,0.72991]
[1752094079816,0.72989,2739.5,2739.4,0.72988]
[1752094080122,0.72987,2739.6,2739.5,0.72986]
[1752094080422,0.72983,2739.7,2739.6,0.72983]
[1752094080621,0.72983,2739.7,2739.4,0.72989]
[1752094080622,0.72989,2739.5,2739.4,0.72989]
[1752094080822,0.72986,2739.6,2739.5,0.72985]
[1752094081013,0.72992,2739.4,2739.3,0.72991]
[1752094081216,0.72993,2739.3,2739.2,1.96774]
[1752094081421,3.2078,2739.8,2739.2,1.2378]
[1752094081422,0.9852,2739.6,2739.2,1.2378]
[1752094081616,0.7299,2739.5,2739.4,0.72989]
[1752094082122,0.72992,2739.4,2739.3,0.72991]
[1752094082623,0.72993,2739.3,2739.2,1.96774]
[1752094082824,0.72992,2739.4,2739.3,0.72991]
[1752094083022,0.72993,2739.3,2739.2,1.96774]
[1752094083222,0.72995,2739.2,2739.1,0.72997]
[1752094083424,0.72995,2739.2,2739.0,0.8891]
[1752094083425,0.72998,2739.1,2739.0,0.8891]
[1752094083622,0.72998,2739.1,2739.0,1.61911]
[1752094083816,0.72998,2739.1,2739.0,0.8891]
[1752094084022,0.73008,2738.8,2738.7,0.73005]
[1752094084223,0.73009,2738.7,2738.6,3.2078]
[1752094084425,0.9852,2738.7,2738.6,3.93791]
[1752094084616,1.71529,2738.7,2738.6,3.2078]
[1752094084820,0.73012,2738.6,2738.3,2.1464]
[1752094085020,0.9852,2738.7,2738.3,2.1464]
[1752094085219,0.73014,2738.6,2738.5,0.73013]
[1752094085720,1.71531,2738.7,2738.6,0.73011]
[1752094086018,0.73009,2738.7,2738.6,0.73011]
[1752094086826,0.73011,2738.6,2738.5,0.73013]
[1752094087027,0.9852,2738.6,2738.3,2.1464]
[1752094087225,0.73017,2738.4,2738.3,0.8388]
[1752094087829,0.73017,2738.4,2738.3,1.56899]
[1752094088126,0.73017,2738.4,2738.3,0.8388]
[1752094088329,0.73017,2738.4,2738.3,1.56899]
[1752094088625,0.73017,2738.4,2738.3,0.8388]
[1752094088827,0.73017,2738.4,2738.3,1.56899]
[1752094089432,0.73016,2738.5,2738.4,0.73014]
[1752094090630,3.2078,2738.7,2738.3,2.66429]
[1752094090826,3.93792,2738.7,2738.6,0.73011]
[1752094091523,3.2078,2738.7,2738.6,0.73011]
[1752094092527,0.9417,2739.1,2738.5,5.03314]
[1752094092729,0.73005,2738.9,2738.8,0.73002]
[1752094094130,0.73009,2738.8,2738.7,0.73006]
[1752094094424,2.76667,2739.1,2738.6,1.2301]
[1752094094629,0.73006,2738.9,2738.8,0.73003]
[1752094094932,0.73003,2739.0,2738.9,0.73003]
[1752094095126,0.66,2739.0,2738.9,0.73003]
[1752094095327,1.39001,2739.0,2738.9,0.73003]
[1752094095528,1.39001,2739.0,2738.9,1.96743]
[1752094096029,3.2078,2739.2,2739.1,0.72998]
[1752094096531,4.59775,2739.2,2739.1,0.72998]
[1752094097033,4.8095,2739.2,2739.1,0.72998]
[1752094097229,4.8095,2739.2,2739.1,3.13861312]
[1752094097230,3.2078,2739.2,2739.1,3.13861312]
[1752094098033,3.04757,2739.7,2739.3,0.7299]
[1752094098234,0.66,2739.4,2739.3,0.7299]
[1752094098529,0.72993,2739.3,2739.2,1.99224]
[1752094098735,1.38993,2739.3,2739.2,1.99224]
[1752094098933,1.38993,2739.3,2738.9,2.67379]
[1752094098934,0.73003,2738.9,2738.8,0.73005]
[1752094099133,0.7301,2738.8,2738.7,0.73007]
[1752094099330,2.3318,2738.8,2738.7,0.73007]
[1752094099534,0.73011,2738.7,2738.6,0.7301]
[1752094099729,0.73011,2738.7,2738.5,3.2078]
[1752094099730,0.73011,2738.6,2738.5,0.73012]
[1752094099935,0.73025,2738.2,2738.1,0.73023]
[1752094100330,0.73023,2738.2,2738.0,3.2078]
[1752094100525,0.73023,2738.2,2738.0,3.93806]
[1752094100730,1.82544,2738.4,2737.7,2.1607]
[1752094100931,0.73033,2737.9,2737.8,0.73032]
[1752094101132,0.73033,2737.9,2737.8,3.2078]
[1752094101427,0.73043,2737.5,2737.4,3.2078]
[1752094102035,0.73045,2737.4,2737.3,0.73045]
[1752094103138,0.9417,2737.7,2737.2,1.3335]
[1752094103338,0.73043,2737.5,2737.4,0.73043]
[1752094103639,0.73043,2737.5,2737.4,3.93823]
[1752094103841,3.2078,2737.9,2737.4,3.2078]
[1752094104133,3.2078,2737.9,2737.6,2.40863312]
[1752094104438,0.73035,2737.7,2737.6,2.40863312]
[1752094104638,0.73034,2737.8,2737.7,0.73035]
[1752094104837,3.2078,2737.9,2737.5,4.01397]
[1752094105138,0.73016,2738.5,2737.9,1.82576]
[1752094105334,0.9417,2738.6,2738.0,4.495]
[1752094105539,0.73019,2738.4,2738.0,4.495]
[1752094105735,0.73019,2738.4,2738.2,0.73021]
[1752094105936,0.73016,2738.5,2738.4,0.73017]
[1752094106138,0.73019,2738.4,2738.3,0.73018]
[1752094107139,0.73016,2738.5,2738.4,0.73015]
[1752094107540,0.73018,2738.4,2738.3,0.73018]
[1752094107941,4.1495,2738.9,2738.7,0.73008]
[1752094108136,0.73006,2738.8,2738.7,0.73008]
[1752094108338,0.7301,2738.7,2738.6,0.73009]
[1752094108540,1.67178,2738.8,2738.7,0.73009]
[1752094109640,0.7301,2738.7,2738.6,0.7301]
[1752094110242,0.9417,2738.7,2738.4,1.3114]
[1752094110442,0.73013,2738.6,2738.5,0.73012]
[1752094110836,2.76701,2738.6,2738.1,4.0682]
[1752094111037,0.73022,2738.2,2738.1,0.8604]
[1752094111237,0.9417,2738.2,2737.7,3.2078]
[1752094111433,0.7303,2738.0,2737.9,0.73028]
[1752094112140,0.9417,2738.4,2737.9,1.82573]
[1752094112444,0.73012,2738.6,2738.5,0.73013]
[1752094112640,5.03292,2738.9,2738.3,3.2078]
[1752094112840,5.03292,2738.9,2738.2,0.7302]
[1752094112841,0.73022,2738.3,2738.2,0.7302]
[1752094113141,0.73018,2738.4,2738.3,0.73016]
[1752094115646,0.73023,2738.3,2738.2,0.73021]
[1752094116341,1.82524,2738.7,2738.4,0.73013]
[1752094116544,3.2078,2738.9,2738.4,2.6286175]
[1752094116843,0.9417,2738.9,2738.6,3.2078]
[1752094117040,0.73009,2738.7,2738.6,3.93788]
[1752094117744,0.73009,2738.7,2738.6,0.73008]
[1752094118046,0.73011,2738.6,2738.5,2.79792]
[1752094118744,1.82531,2738.6,2738.0,3.2078]
[1752094118945,0.73025,2738.2,2738.1,0.73023]
[1752094119142,0.73025,2738.2,2738.0,3.2078]
[1752094119143,0.7302,2738.4,2738.3,0.73018]
[1752094120243,0.73014,2738.6,2738.5,0.73011]
[1752094120441,3.2078,2738.7,2738.6,0.73011]
[1752094120646,3.93789,2738.7,2738.6,0.73011]
[1752094121143,3.2078,2738.7,2738.6,0.73011]
[1752094121343,3.2078,2738.7,2738.6,3.3587275]
[1752094121544,0.9262,2739.1,2739.0,0.73001]
[1752094121942,0.73001,2739.1,2739.0,0.73001]
[1752094122245,0.73,2739.1,2739.0,0.72999]
[1752094122645,0.73,2739.1,2738.8,5.91015]
[1752094122646,0.73003,2739.0,2738.9,0.73002]
[1752094122846,0.73003,2739.0,2738.8,4.085]
[1752094123046,0.73003,2738.9,2738.8,4.085]
[1752094123346,0.73003,2738.9,2738.8,0.8772]
[1752094123547,0.73003,2738.9,2738.3,3.2078]
[1752094123548,0.73013,2738.6,2738.3,3.2078]
[1752094123747,0.73013,2738.6,2738.5,0.7301]
[1752094124347,0.73011,2738.7,2738.6,0.7301]
[1752094124546,0.73014,2738.6,2738.5,0.73012]
[1752094126549,0.73014,2738.5,2738.4,2.06555]
[1752094126751,0.73017,2738.4,2738.3,4.81517]
[1752094126957,0.9262,2738.4,2738.0,3.2078]
[1752094127253,0.73025,2738.1,2738.0,3.93807]
[1752094127853,0.73025,2738.1,2738.0,0.73027]
[1752094128055,0.9262,2738.1,2737.7,3.2078]
[1752094128250,0.73033,2737.8,2737.7,3.93813]
[1752094128446,0.73033,2737.8,2737.7,5.20273]
[1752094129452,0.73033,2737.8,2737.7,4.4724]
[1752094129652,0.73033,2737.8,2737.7,3.2078]
[1752094130055,0.73035,2737.7,2737.6,0.8876]
[1752094130351,0.73035,2737.7,2737.6,1.61798]
[1752094131050,0.73035,2737.7,2737.6,0.8876]
[1752094131350,1.65655,2737.7,2737.6,0.8876]
[1752094132057,0.73035,2737.7,2737.6,0.8876]
[1752094132557,0.73035,2737.7,2737.6,1.61798]
[1752094133059,0.73031,2738.0,2737.9,0.73026]
[1752094133248,0.73027,2738.1,2738.0,0.73025]
[1752094133452,3.2078,2738.2,2738.1,0.73025]
[1752094134156,4.134,2738.8,2738.4,0.73017]
[1752094134352,3.2078,2738.8,2738.7,0.73009]
[1752094134552,0.73001,2739.0,2738.9,0.73001]
[1752094135051,3.9378,2739.1,2739.0,0.73001]
[1752094135252,0.73004,2739.0,2738.9,0.73002]
[1752094135859,0.73007,2738.8,2738.7,0.73006]